[Event "Late-Titled-Tuesday-Blitz-January-16-2024"]
[Site "Chess.com"]
[Date "2024.01.16"]
[Round "1"]
[White "rdarruda"]
[Black "Angry_Twin"]
[Result "0-1"]
[WhiteElo "2506"]
[BlackElo "2960"]
[TimeControl "180+1"]
[EndTime "14:06:03 PST"]
[Termination "Angry_Twin won by resignation"]

1. Nf3 {[%clk 0:02:02.4]} 1... d5 {[%clk 0:02:58.6]} 2. g3 {[%clk 0:02:00.9]}
2... Nf6 {[%clk 0:02:59]} 3. Bg2 {[%clk 0:02:00.5]} 3... g6 {[%clk 0:02:58.8]}
4. O-O {[%clk 0:02:00.2]} 4... Bg7 {[%clk 0:02:59.4]} 5. d3 {[%clk 0:01:59.9]}
5... O-O {[%clk 0:02:59.5]} 6. e3 {[%clk 0:01:39.5]} 6... c5 {[%clk 0:02:57.8]}
7. Nc3 {[%clk 0:01:39.9]} 7... Nc6 {[%clk 0:02:57.6]} 8. Qe2 {[%clk 0:01:39.6]}
8... e5 {[%clk 0:02:54.3]} 9. e4 {[%clk 0:01:38.6]} 9... d4 {[%clk 0:02:45.4]}
10. Nb1 {[%clk 0:01:36.6]} 10... Ne8 {[%clk 0:02:46]} 11. Nbd2 {[%clk
0:01:36.8]} 11... Nd6 {[%clk 0:02:46.7]} 12. h3 {[%clk 0:01:35.8]} 12... Be6
{[%clk 0:02:43.9]} 13. b3 {[%clk 0:01:35.2]} 13... b5 {[%clk 0:02:43.5]} 14. a4
{[%clk 0:01:34.5]} 14... a6 {[%clk 0:02:43.7]} 15. Ba3 {[%clk 0:01:33.4]} 15...
Nb4 {[%clk 0:02:40.6]} 16. Bxb4 {[%clk 0:01:33]} 16... cxb4 {[%clk 0:02:41]} 17.
Ne1 {[%clk 0:01:30.5]} 17... Qc7 {[%clk 0:02:30.8]} 18. f4 {[%clk 0:01:29.9]}
18... f6 {[%clk 0:02:31.2]} 19. Ndf3 {[%clk 0:01:23.8]} 19... Nf7 {[%clk
0:02:10.3]} 20. Kh2 {[%clk 0:01:21.6]} 20... exf4 {[%clk 0:01:54.1]} 21. Nxd4
{[%clk 0:01:17.6]} 21... fxg3+ {[%clk 0:01:54.1]} 22. Kh1 {[%clk 0:01:18.4]}
22... Qb6 {[%clk 0:01:48.7]} 23. Nxe6 {[%clk 0:01:16.6]} 23... Qxe6 {[%clk
0:01:48.6]} 24. axb5 {[%clk 0:01:13.5]} 24... axb5 {[%clk 0:01:48.6]} 25. Rxa8
{[%clk 0:01:14]} 25... Rxa8 {[%clk 0:01:49]} 26. e5 {[%clk 0:01:14.6]} 26... Rc8
{[%clk 0:01:41.9]} 27. d4 {[%clk 0:01:13.7]} 27... fxe5 {[%clk 0:01:38.1]} 28.
Nd3 {[%clk 0:01:14.2]} 28... Qd6 {[%clk 0:01:25.5]} 29. d5 {[%clk 0:01:14.1]}
29... Nh6 {[%clk 0:01:14.9]} 30. Qe4 {[%clk 0:01:09]} 30... Nf5 {[%clk
0:01:14.3]} 31. Nxb4 {[%clk 0:01:08.5]} 31... Rc3 {[%clk 0:01:07.4]} 32. Nc6
{[%clk 0:01:06.9]} 32... Re3 {[%clk 0:00:59.7]} 33. Qg4 {[%clk 0:01:03.7]} 33...
h5 {[%clk 0:00:59.2]} 34. Qg5 {[%clk 0:01:03.5]} 34... Bh6 {[%clk 0:00:56.1]}
35. Qd8+ {[%clk 0:01:01.1]} 35... Qxd8 {[%clk 0:00:55.5]} 36. Nxd8 {[%clk
0:01:02]} 36... Re2 {[%clk 0:00:53.6]} 37. Nc6 {[%clk 0:01:00.6]} 37... Ne3
{[%clk 0:00:46.6]} 38. Bf3 {[%clk 0:01:00.6]} 38... Rh2+ {[%clk 0:00:42]} 39.
Kg1 {[%clk 0:00:59.9]} 39... Nxf1 {[%clk 0:00:42.7]} 40. Kxf1 {[%clk 0:00:57.7]}
40... Rf2+ {[%clk 0:00:42.5]} 0-1

[Event "Late-Titled-Tuesday-Blitz-January-16-2024"]
[Site "Chess.com"]
[Date "2024.01.16"]
[Round "1"]
[White "Truequitos"]
[Black "OparinGrigoriy"]
[Result "0-1"]
[WhiteElo "2520"]
[BlackElo "3055"]
[TimeControl "180+1"]
[EndTime "14:06:04 PST"]
[Termination "OparinGrigoriy won by resignation"]

1. d4 {[%clk 0:03:00]} 1... d5 {[%clk 0:02:58.5]} 2. Bf4 {[%clk 0:02:59.1]} 2...
Nf6 {[%clk 0:02:57.1]} 3. e3 {[%clk 0:02:59.6]} 3... e6 {[%clk 0:02:57.8]} 4.
Nd2 {[%clk 0:02:59]} 4... c5 {[%clk 0:02:58.1]} 5. c3 {[%clk 0:02:59.1]} 5...
Nc6 {[%clk 0:02:58.6]} 6. Ngf3 {[%clk 0:02:58.7]} 6... cxd4 {[%clk 0:02:59.2]}
7. exd4 {[%clk 0:02:58.5]} 7... Nh5 {[%clk 0:02:59.6]} 8. Bg5 {[%clk 0:02:56.8]}
8... f6 {[%clk 0:02:59.6]} 9. Bh4 {[%clk 0:02:55.1]} 9... g6 {[%clk 0:02:57]}
10. Bb5 {[%clk 0:02:48.7]} 10... Bd7 {[%clk 0:02:54.7]} 11. O-O {[%clk
0:02:47.9]} 11... Ng7 {[%clk 0:02:54.6]} 12. Re1 {[%clk 0:02:47]} 12... Nf5
{[%clk 0:02:54.4]} 13. Bg3 {[%clk 0:02:47.7]} 13... Bg7 {[%clk 0:02:50.8]} 14.
Qe2 {[%clk 0:02:33.7]} 14... O-O {[%clk 0:02:50.2]} 15. Qd3 {[%clk 0:02:33.4]}
15... Re8 {[%clk 0:02:45.2]} 16. Re2 {[%clk 0:02:29.1]} 16... a6 {[%clk
0:02:32.7]} 17. Bxc6 {[%clk 0:02:11]} 17... Bxc6 {[%clk 0:02:32]} 18. a4 {[%clk
0:02:10.7]} 18... a5 {[%clk 0:02:29.7]} 19. b3 {[%clk 0:02:06.9]} 19... Qd7
{[%clk 0:02:28.8]} 20. Rae1 {[%clk 0:02:04.1]} 20... Rac8 {[%clk 0:02:19.1]} 21.
Qb1 {[%clk 0:01:32.3]} 21... b5 {[%clk 0:02:16.5]} 22. axb5 {[%clk 0:01:18.5]}
22... Bxb5 {[%clk 0:02:17.4]} 23. c4 {[%clk 0:01:19.2]} 23... dxc4 {[%clk
0:02:12.5]} 24. bxc4 {[%clk 0:01:20.1]} 24... Bxc4 {[%clk 0:02:13.3]} 25. Nxc4
{[%clk 0:01:20.1]} 25... Rxc4 {[%clk 0:02:14.2]} 26. Qa2 {[%clk 0:01:13.1]}
26... Qd5 {[%clk 0:02:11.5]} 27. Bc7 {[%clk 0:00:59.1]} 27... a4 {[%clk
0:02:04.9]} 28. Bb6 {[%clk 0:00:59.1]} 28... Bf8 {[%clk 0:02:04.3]} 29. h3
{[%clk 0:00:55.4]} 29... a3 {[%clk 0:02:01.9]} 30. Nd2 {[%clk 0:00:48]} 30...
Rxd4 {[%clk 0:01:59.6]} 31. Qxd5 {[%clk 0:00:35.2]} 31... Rxd5 {[%clk
0:02:00.5]} 32. Nc4 {[%clk 0:00:35.9]} 32... e5 {[%clk 0:01:57]} 33. Ra2 {[%clk
0:00:34]} 33... Ra8 {[%clk 0:01:57]} 34. Rea1 {[%clk 0:00:32.5]} 34... Rd3
{[%clk 0:01:56.7]} 35. Be3 {[%clk 0:00:26.5]} 35... Nxe3 {[%clk 0:01:51.7]} 36.
Nxe3 {[%clk 0:00:27.4]} 36... Bc5 {[%clk 0:01:49.9]} 37. Nc4 {[%clk 0:00:27]}
37... Rc3 {[%clk 0:01:49.5]} 38. Nd2 {[%clk 0:00:26.1]} 38... Bd4 {[%clk
0:01:49.1]} 39. Ne4 {[%clk 0:00:24.1]} 39... Rb3 {[%clk 0:01:48.6]} 40. Rc1
{[%clk 0:00:22.1]} 40... Rb2 {[%clk 0:01:48.3]} 41. Rc7 {[%clk 0:00:14.7]} 41...
Rxa2 {[%clk 0:01:37.2]} 42. Nxf6+ {[%clk 0:00:15]} 42... Kf8 {[%clk 0:01:37.6]}
43. Rd7 {[%clk 0:00:15.6]} 43... e4 {[%clk 0:01:34.4]} 0-1

[Event "Late-Titled-Tuesday-Blitz-January-16-2024"]
[Site "Chess.com"]
[Date "2024.01.16"]
[Round "1"]
[White "Kostukov_Alex"]
[Black "shrek4life02"]
[Result "0-1"]
[WhiteElo "2309"]
[BlackElo "2637"]
[TimeControl "180+1"]
[EndTime "14:06:04 PST"]
[Termination "shrek4life02 won on time"]

1. g3 {[%clk 0:02:57.9]} 1... e5 {[%clk 0:02:58.3]} 2. c4 {[%clk 0:02:57.6]}
2... c6 {[%clk 0:02:57.7]} 3. Bg2 {[%clk 0:02:57.6]} 3... d5 {[%clk 0:02:58.4]}
4. cxd5 {[%clk 0:02:58.4]} 4... cxd5 {[%clk 0:02:58]} 5. d4 {[%clk 0:02:58.9]}
5... e4 {[%clk 0:02:58.1]} 6. Nc3 {[%clk 0:02:59]} 6... Be6 {[%clk 0:02:58.1]}
7. Nh3 {[%clk 0:02:57.3]} 7... Bd6 {[%clk 0:02:56.4]} 8. O-O {[%clk 0:02:52.8]}
8... Nc6 {[%clk 0:02:55.8]} 9. Nf4 {[%clk 0:02:47.5]} 9... Nf6 {[%clk
0:02:51.5]} 10. Nxe6 {[%clk 0:02:44.4]} 10... fxe6 {[%clk 0:02:52.4]} 11. Bg5
{[%clk 0:02:38.1]} 11... O-O {[%clk 0:02:51.6]} 12. e3 {[%clk 0:02:36]} 12...
Rc8 {[%clk 0:02:48.2]} 13. Bh3 {[%clk 0:02:19.6]} 13... Qe8 {[%clk 0:02:47.4]}
14. Bxf6 {[%clk 0:01:49.6]} 14... Rxf6 {[%clk 0:02:48.3]} 15. f3 {[%clk
0:01:36.7]} 15... Rh6 {[%clk 0:02:47.4]} 16. Bg2 {[%clk 0:01:33.9]} 16... Qh5
{[%clk 0:02:47]} 17. h3 {[%clk 0:00:46.4]} 17... Bxg3 {[%clk 0:02:47.2]} 18.
fxe4 {[%clk 0:00:44.5]} 18... Qg5 {[%clk 0:02:47.8]} 19. exd5 {[%clk 0:00:39.1]}
19... Qxe3+ {[%clk 0:02:46.4]} 20. Kh1 {[%clk 0:00:38.6]} 20... Nxd4 {[%clk
0:02:45.4]} 21. dxe6 {[%clk 0:00:23.5]} 21... Be5 {[%clk 0:02:44.6]} 22. Qg4
{[%clk 0:00:14.1]} 22... Rg6 {[%clk 0:02:43.6]} 23. Qh4 {[%clk 0:00:14.2]} 23...
Nxe6 {[%clk 0:02:31.2]} 24. Rae1 {[%clk 0:00:13.2]} 24... Qg3 {[%clk 0:02:25.6]}
25. Qxg3 {[%clk 0:00:12.5]} 25... Bxg3 {[%clk 0:02:26.5]} 26. Re3 {[%clk
0:00:10.2]} 26... Nc5 {[%clk 0:02:19.6]} 27. Nd5 {[%clk 0:00:08.1]} 27... Bd6
{[%clk 0:02:15.8]} 28. Ne7+ {[%clk 0:00:07.3]} 28... Bxe7 {[%clk 0:02:16.4]} 29.
Rxe7 {[%clk 0:00:08.2]} 29... a5 {[%clk 0:01:51.8]} 30. Bd5+ {[%clk 0:00:08.4]}
30... Kh8 {[%clk 0:01:51.5]} 31. Ref7 {[%clk 0:00:08.2]} 31... h5 {[%clk
0:01:48.2]} 32. Bxb7 {[%clk 0:00:06.9]} 32... Nxb7 {[%clk 0:01:43.9]} 33. Rxb7
{[%clk 0:00:07.8]} 33... Rc2 {[%clk 0:01:44.5]} 34. Rb5 {[%clk 0:00:05]} 34...
Rh6 {[%clk 0:01:40.5]} 35. Rff5 {[%clk 0:00:03.8]} 35... g6 {[%clk 0:01:39.2]}
36. Rf7 {[%clk 0:00:04.1]} 36... Kg8 {[%clk 0:01:36]} 37. Rd7 {[%clk 0:00:03.3]}
37... Rc8 {[%clk 0:01:36.5]} 38. Rxa5 {[%clk 0:00:03.3]} 38... Rh7 {[%clk
0:01:37]} 39. Ra6 {[%clk 0:00:03.4]} 39... Rxd7 {[%clk 0:01:36.6]} 40. Rxg6+
{[%clk 0:00:03.6]} 40... Kh7 {[%clk 0:01:37.2]} 41. Rg2 {[%clk 0:00:02.4]} 41...
Kh6 {[%clk 0:01:37.7]} 0-1

[Event "Late-Titled-Tuesday-Blitz-January-16-2024"]
[Site "Chess.com"]
[Date "2024.01.16"]
[Round "1"]
[White "FrenchHarvey"]
[Black "Cambek64"]
[Result "1-0"]
[WhiteElo "2806"]
[BlackElo "2444"]
[TimeControl "180+1"]
[EndTime "14:06:05 PST"]
[Termination "FrenchHarvey won by resignation"]

1. e4 {[%clk 0:03:00.9]} 1... e6 {[%clk 0:02:21.9]} 2. d4 {[%clk 0:02:59.7]}
2... d5 {[%clk 0:02:13.3]} 3. e5 {[%clk 0:02:59.7]} 3... c5 {[%clk 0:02:09.2]}
4. c3 {[%clk 0:02:59.9]} 4... Nc6 {[%clk 0:02:06.6]} 5. Nf3 {[%clk 0:03:00.4]}
5... Bd7 {[%clk 0:02:03.9]} 6. Bd3 {[%clk 0:03:00.3]} 6... cxd4 {[%clk
0:02:00.7]} 7. O-O {[%clk 0:03:00.3]} 7... dxc3 {[%clk 0:01:59.7]} 8. Nxc3
{[%clk 0:03:00.2]} 8... a6 {[%clk 0:02:00.3]} 9. h4 {[%clk 0:02:54.1]} 9... h6
{[%clk 0:01:59.5]} 10. h5 {[%clk 0:02:53.4]} 10... Bc5 {[%clk 0:01:59.8]} 11. a3
{[%clk 0:02:49.6]} 11... Nge7 {[%clk 0:01:59.4]} 12. b4 {[%clk 0:02:48.9]} 12...
Bb6 {[%clk 0:01:59.2]} 13. Na4 {[%clk 0:02:49.1]} 13... Ba7 {[%clk 0:01:58.3]}
14. Nc5 {[%clk 0:02:45.4]} 14... Bxc5 {[%clk 0:01:56.3]} 15. bxc5 {[%clk
0:02:46.3]} 15... Qc7 {[%clk 0:01:54.9]} 16. Bf4 {[%clk 0:02:42.3]} 16... g5
{[%clk 0:01:50.1]} 17. Bg3 {[%clk 0:02:38.6]} 17... O-O-O {[%clk 0:01:45.3]} 18.
Re1 {[%clk 0:02:35.9]} 18... Kb8 {[%clk 0:01:44.1]} 19. Rb1 {[%clk 0:02:35.7]}
19... Ka8 {[%clk 0:01:44.6]} 20. Qe2 {[%clk 0:02:33.5]} 20... Na7 {[%clk
0:01:44.7]} 21. Rec1 {[%clk 0:02:30.6]} 21... Bb5 {[%clk 0:01:43.9]} 22. Nd4
{[%clk 0:02:26.7]} 22... Bxd3 {[%clk 0:01:43]} 23. Qxd3 {[%clk 0:02:27.6]} 23...
Nec6 {[%clk 0:01:42.5]} 24. Rb6 {[%clk 0:02:24.3]} 24... Nxd4 {[%clk 0:01:38.3]}
25. Qxd4 {[%clk 0:02:24.5]} 25... Rc8 {[%clk 0:01:38.4]} 26. Rcb1 {[%clk
0:02:20.2]} 26... Qxc5 {[%clk 0:01:31.5]} 27. Qxc5 {[%clk 0:02:09.6]} 27... Rxc5
{[%clk 0:01:31.7]} 28. Rxb7 {[%clk 0:02:10.4]} 28... Rf8 {[%clk 0:01:29.4]} 29.
f3 {[%clk 0:02:06.5]} 29... Rb5 {[%clk 0:01:29.7]} 30. R1xb5 {[%clk 0:02:05.1]}
30... Nxb5 {[%clk 0:01:28.5]} 31. Rd7 {[%clk 0:02:04.6]} 31... Nxa3 {[%clk
0:01:24.9]} 32. Bf2 {[%clk 0:02:05]} 32... Nc4 {[%clk 0:01:25.5]} 33. Bc5 {[%clk
0:02:04.7]} 33... Rc8 {[%clk 0:01:23.9]} 34. Bd4 {[%clk 0:02:04.5]} 34... a5
{[%clk 0:01:14.8]} 35. Rxf7 {[%clk 0:02:03.8]} 35... Rc6 {[%clk 0:01:14.6]} 36.
g4 {[%clk 0:02:01.1]} 36... Ra6 {[%clk 0:01:14.3]} 37. f4 {[%clk 0:02:01.4]}
37... gxf4 {[%clk 0:01:11.2]} 38. g5 {[%clk 0:02:01.9]} 38... hxg5 {[%clk
0:01:04.4]} 39. h6 {[%clk 0:02:02.2]} 39... Rc6 {[%clk 0:01:04.4]} 40. h7 {[%clk
0:02:02.2]} 40... Rc8 {[%clk 0:01:04.8]} 41. Rg7 {[%clk 0:02:02.9]} 41... a4
{[%clk 0:00:48.1]} 42. Rg8 {[%clk 0:02:02.7]} 42... Kb7 {[%clk 0:00:42.5]} 43.
Rxc8 {[%clk 0:02:00.9]} 43... Kxc8 {[%clk 0:00:42.8]} 44. h8=Q+ {[%clk
0:02:01.6]} 44... Kb7 {[%clk 0:00:43.2]} 45. Qg7+ {[%clk 0:02:01]} 45... Kc6
{[%clk 0:00:43.5]} 46. Qxg5 {[%clk 0:01:56.8]} 46... a3 {[%clk 0:00:43.5]} 47.
Qxf4 {[%clk 0:01:56.9]} 47... a2 {[%clk 0:00:43.9]} 48. Qc1 {[%clk 0:01:55.9]}
48... Kb5 {[%clk 0:00:43.9]} 49. Qc2 {[%clk 0:01:55]} 49... Kb4 {[%clk
0:00:41.8]} 50. Qxa2 {[%clk 0:01:53.5]} 50... Kb5 {[%clk 0:00:41.6]} 51. Qb3+
{[%clk 0:01:53.6]} 51... Kc6 {[%clk 0:00:39.9]} 52. Qb4 {[%clk 0:01:53.8]} 52...
Kd7 {[%clk 0:00:39.2]} 53. Qb7+ {[%clk 0:01:53]} 53... Ke8 {[%clk 0:00:39.2]}
54. Bc5 {[%clk 0:01:53.7]} 54... Kd8 {[%clk 0:00:36.7]} 55. Qe7+ {[%clk
0:01:51.5]} 55... Kc8 {[%clk 0:00:36.5]} 56. Bd6 {[%clk 0:01:52]} 56... Nxd6
{[%clk 0:00:34]} 57. exd6 {[%clk 0:01:52.2]} 57... Kb8 {[%clk 0:00:33.5]} 58.
Qc7+ {[%clk 0:01:52.4]} 58... Ka8 {[%clk 0:00:32]} 59. d7 {[%clk 0:01:53.3]} 1-0

[Event "Late-Titled-Tuesday-Blitz-January-16-2024"]
[Site "Chess.com"]
[Date "2024.01.16"]
[Round "1"]
[White "guillembaches"]
[Black "Hikaru"]
[Result "0-1"]
[WhiteElo "2529"]
[BlackElo "3231"]
[TimeControl "180+1"]
[EndTime "14:06:08 PST"]
[Termination "Hikaru won by resignation"]

1. d4 {[%clk 0:03:00.9]} 1... g6 {[%clk 0:03:00.9]} 2. Nf3 {[%clk 0:03:01.2]}
2... Bg7 {[%clk 0:03:01.4]} 3. c3 {[%clk 0:03:01.3]} 3... d6 {[%clk 0:03:01.9]}
4. Bg5 {[%clk 0:03:01.4]} 4... Nd7 {[%clk 0:03:02.2]} 5. Nbd2 {[%clk 0:03:01.1]}
5... Ngf6 {[%clk 0:03:00.4]} 6. e4 {[%clk 0:02:59.5]} 6... e5 {[%clk 0:03:01]}
7. Bd3 {[%clk 0:02:59.4]} 7... b6 {[%clk 0:03:01.3]} 8. O-O {[%clk 0:02:58.8]}
8... Bb7 {[%clk 0:03:01.8]} 9. Re1 {[%clk 0:02:58.9]} 9... O-O {[%clk
0:03:01.7]} 10. Qc2 {[%clk 0:02:56.1]} 10... h6 {[%clk 0:03:01.7]} 11. Bh4
{[%clk 0:02:55.2]} 11... Re8 {[%clk 0:03:02.3]} 12. Rad1 {[%clk 0:02:43.8]}
12... exd4 {[%clk 0:03:01]} 13. cxd4 {[%clk 0:02:39.6]} 13... g5 {[%clk
0:03:01.2]} 14. Bg3 {[%clk 0:02:39.2]} 14... Nh5 {[%clk 0:03:01.5]} 15. d5
{[%clk 0:02:30.7]} 15... a6 {[%clk 0:02:56.6]} 16. Nc4 {[%clk 0:02:21.5]} 16...
Nc5 {[%clk 0:02:53.1]} 17. Bf1 {[%clk 0:02:18.3]} 17... a5 {[%clk 0:02:50.5]}
18. b3 {[%clk 0:01:59.4]} 18... Bc8 {[%clk 0:02:48.5]} 19. Nd4 {[%clk
0:01:54.5]} 19... Bxd4 {[%clk 0:02:25.7]} 20. Rxd4 {[%clk 0:01:53.8]} 20... Bf5
{[%clk 0:02:22.8]} 21. f3 {[%clk 0:01:40.7]} 21... Nxg3 {[%clk 0:02:18.5]} 22.
hxg3 {[%clk 0:01:40.8]} 22... Bg6 {[%clk 0:02:18.7]} 23. g4 {[%clk 0:01:34]}
23... Qf6 {[%clk 0:02:11.2]} 24. Qf2 {[%clk 0:01:23.9]} 24... h5 {[%clk
0:02:10.6]} 25. gxh5 {[%clk 0:01:23.1]} 25... Bxh5 {[%clk 0:02:11.5]} 26. Red1
{[%clk 0:01:04.1]} 26... g4 {[%clk 0:01:59.4]} 27. Be2 {[%clk 0:00:57.4]} 27...
gxf3 {[%clk 0:01:58.2]} 28. gxf3 {[%clk 0:00:56]} 28... Kf8 {[%clk 0:01:58.1]}
29. Ne3 {[%clk 0:00:50.6]} 29... Re5 {[%clk 0:01:53.1]} 30. Nf5 {[%clk
0:00:37.5]} 30... Bg6 {[%clk 0:01:53.1]} 31. Ng3 {[%clk 0:00:31.2]} 31... Qf4
{[%clk 0:01:51.6]} 32. Kf1 {[%clk 0:00:28]} 32... Rg5 {[%clk 0:01:48.8]} 33. Kg2
{[%clk 0:00:24.7]} 33... Re8 {[%clk 0:01:35.1]} 34. Rh1 {[%clk 0:00:22.4]} 34...
Kg7 {[%clk 0:01:31.5]} 35. Rdd1 {[%clk 0:00:20.7]} 35... Ree5 {[%clk 0:01:25.2]}
36. Rdg1 {[%clk 0:00:20.6]} 36... Rxg3+ {[%clk 0:01:25.4]} 37. Qxg3 {[%clk
0:00:20.3]} 37... Rg5 {[%clk 0:01:25.9]} 38. Qxg5 {[%clk 0:00:20.5]} 38... Qxg5+
{[%clk 0:01:26.3]} 39. Kf2 {[%clk 0:00:21.4]} 39... Qd2 {[%clk 0:01:27]} 0-1

[Event "Late-Titled-Tuesday-Blitz-January-16-2024"]
[Site "Chess.com"]
[Date "2024.01.16"]
[Round "1"]
[White "iwanyu"]
[Black "jamengrand"]
[Result "1-0"]
[WhiteElo "2666"]
[BlackElo "2349"]
[TimeControl "180+1"]
[EndTime "14:06:10 PST"]
[Termination "iwanyu won by resignation"]

1. d4 {[%clk 0:03:00.9]} 1... d5 {[%clk 0:02:59.9]} 2. c4 {[%clk 0:03:00.4]}
2... e6 {[%clk 0:03:00.6]} 3. Nf3 {[%clk 0:03:00.7]} 3... Nf6 {[%clk 0:03:00.9]}
4. g3 {[%clk 0:03:01.3]} 4... dxc4 {[%clk 0:03:00.9]} 5. Bg2 {[%clk 0:03:01.4]}
5... Bd7 {[%clk 0:03:01.2]} 6. Ne5 {[%clk 0:03:00.4]} 6... Bc6 {[%clk
0:03:01.6]} 7. Nxc6 {[%clk 0:03:01]} 7... Nxc6 {[%clk 0:03:02.2]} 8. e3 {[%clk
0:03:01.7]} 8... Qd7 {[%clk 0:03:02.2]} 9. O-O {[%clk 0:03:01.7]} 9... O-O-O
{[%clk 0:03:02.5]} 10. Nd2 {[%clk 0:02:57.1]} 10... e5 {[%clk 0:02:55.1]} 11.
Nxc4 {[%clk 0:02:55.2]} 11... exd4 {[%clk 0:02:55.1]} 12. exd4 {[%clk
0:02:52.3]} 12... Nxd4 {[%clk 0:02:54.5]} 13. Be3 {[%clk 0:02:40.5]} 13... Kb8
{[%clk 0:02:53.7]} 14. Bxd4 {[%clk 0:02:35.2]} 14... Qxd4 {[%clk 0:02:53.8]} 15.
Qb3 {[%clk 0:02:35.5]} 15... Nd5 {[%clk 0:02:31.6]} 16. Rad1 {[%clk 0:02:15.2]}
16... Qc5 {[%clk 0:02:32.1]} 17. Ne5 {[%clk 0:02:07.5]} 17... c6 {[%clk
0:01:39.6]} 18. Nxf7 {[%clk 0:02:02.6]} 18... Be7 {[%clk 0:01:39.8]} 19. Nxh8
{[%clk 0:02:01.2]} 19... Rxh8 {[%clk 0:01:40.7]} 20. Bxd5 {[%clk 0:01:59.9]}
20... cxd5 {[%clk 0:01:41.2]} 21. Rxd5 {[%clk 0:02:00.3]} 21... Qc7 {[%clk
0:01:41.2]} 22. Rfd1 {[%clk 0:01:58.4]} 22... Bf6 {[%clk 0:01:36.1]} 23. Rd7
{[%clk 0:01:48.4]} 23... Qc6 {[%clk 0:01:36.1]} 24. Rf7 {[%clk 0:01:33.4]} 24...
Ka8 {[%clk 0:01:25]} 25. Rdd7 {[%clk 0:01:20.3]} 25... Rb8 {[%clk 0:01:24.2]}
26. Qd3 {[%clk 0:00:40.3]} 26... Qc1+ {[%clk 0:01:21.1]} 27. Kg2 {[%clk
0:00:39.3]} 27... Qxb2 {[%clk 0:01:21.4]} 28. a4 {[%clk 0:00:34.2]} 28... Qb4
{[%clk 0:01:20.7]} 29. Qd5 {[%clk 0:00:32.3]} 29... a6 {[%clk 0:01:05.9]} 30. a5
{[%clk 0:00:32.2]} 30... Qb5 {[%clk 0:01:02.7]} 31. Qxb5 {[%clk 0:00:30.8]}
31... axb5 {[%clk 0:01:02.9]} 32. a6 {[%clk 0:00:31.2]} 32... b4 {[%clk
0:00:58.9]} 33. Rxb7 {[%clk 0:00:31]} 1-0

[Event "Late-Titled-Tuesday-Blitz-January-16-2024"]
[Site "Chess.com"]
[Date "2024.01.16"]
[Round "1"]
[White "tarno17"]
[Black "chesspreceptor"]
[Result "0-1"]
[WhiteElo "2171"]
[BlackElo "2569"]
[TimeControl "180+1"]
[EndTime "14:06:11 PST"]
[Termination "chesspreceptor won on time"]

1. e4 {[%clk 0:02:57.7]} 1... e5 {[%clk 0:02:51.4]} 2. Nf3 {[%clk 0:02:56.3]}
2... Nc6 {[%clk 0:02:50]} 3. Bb5 {[%clk 0:02:47.7]} 3... Nf6 {[%clk 0:02:45.7]}
4. O-O {[%clk 0:02:45.5]} 4... Nxe4 {[%clk 0:02:43.5]} 5. Re1 {[%clk 0:02:39.8]}
5... Nd6 {[%clk 0:02:38.5]} 6. Nxe5 {[%clk 0:02:36.6]} 6... Nxe5 {[%clk
0:02:38.3]} 7. Rxe5+ {[%clk 0:02:30.9]} 7... Be7 {[%clk 0:02:38.9]} 8. Ba4
{[%clk 0:02:19.1]} 8... O-O {[%clk 0:02:37.5]} 9. d4 {[%clk 0:02:16.7]} 9... Bf6
{[%clk 0:02:26.7]} 10. Re1 {[%clk 0:02:05.9]} 10... b5 {[%clk 0:02:26]} 11. Bb3
{[%clk 0:02:01.3]} 11... Bb7 {[%clk 0:02:26.6]} 12. c3 {[%clk 0:02:00.6]} 12...
a5 {[%clk 0:02:24.4]} 13. Bf4 {[%clk 0:01:59]} 13... Nc4 {[%clk 0:02:11.4]} 14.
Nd2 {[%clk 0:01:59.9]} 14... Nxb2 {[%clk 0:02:08.6]} 15. Qe2 {[%clk 0:01:47.2]}
15... a4 {[%clk 0:02:02.6]} 16. Bc2 {[%clk 0:01:42]} 16... Bc6 {[%clk
0:01:37.2]} 17. Rab1 {[%clk 0:01:35.1]} 17... a3 {[%clk 0:01:35.9]} 18. Qh5
{[%clk 0:01:15.1]} 18... g6 {[%clk 0:01:34.9]} 19. Qg4 {[%clk 0:00:35.3]} 19...
Bd5 {[%clk 0:01:20.8]} 20. Bh6 {[%clk 0:00:20]} 20... Re8 {[%clk 0:01:20.1]} 21.
Rxe8+ {[%clk 0:00:09]} 21... Qxe8 {[%clk 0:01:21]} 22. Ne4 {[%clk 0:00:09.6]}
22... Bxe4 {[%clk 0:01:11.6]} 23. Bxe4 {[%clk 0:00:10.5]} 23... c6 {[%clk
0:01:08.7]} 24. Qf4 {[%clk 0:00:07.5]} 24... Bg7 {[%clk 0:01:04.9]} 25. d5
{[%clk 0:00:06.9]} 25... Bxh6 {[%clk 0:01:00.3]} 26. Qxh6 {[%clk 0:00:02.1]}
26... Qxe4 {[%clk 0:00:59.9]} 27. dxc6 {[%clk 0:00:01.7]} 27... Qxb1+ {[%clk
0:00:59.6]} 0-1

[Event "Late-Titled-Tuesday-Blitz-January-16-2024"]
[Site "Chess.com"]
[Date "2024.01.16"]
[Round "1"]
[White "K_A_S_T_O_R"]
[Black "ShahMatKanal"]
[Result "1-0"]
[WhiteElo "2918"]
[BlackElo "2494"]
[TimeControl "180+1"]
[EndTime "14:06:19 PST"]
[Termination "K_A_S_T_O_R won by resignation"]

1. e4 {[%clk 0:03:00.9]} 1... Nf6 {[%clk 0:02:59.1]} 2. e5 {[%clk 0:02:56.1]}
2... Nd5 {[%clk 0:02:59.2]} 3. d4 {[%clk 0:02:56.4]} 3... d6 {[%clk 0:02:58.9]}
4. Nf3 {[%clk 0:02:56.9]} 4... g6 {[%clk 0:02:58.7]} 5. Bc4 {[%clk 0:02:56]}
5... Nb6 {[%clk 0:02:58.6]} 6. Bb3 {[%clk 0:02:56.6]} 6... Bg7 {[%clk
0:02:58.2]} 7. Ng5 {[%clk 0:02:56.7]} 7... d5 {[%clk 0:02:57.1]} 8. f4 {[%clk
0:02:55.8]} 8... h6 {[%clk 0:02:55.5]} 9. Nf3 {[%clk 0:02:55.9]} 9... Bg4 {[%clk
0:02:53.9]} 10. Nbd2 {[%clk 0:02:52.6]} 10... Nc6 {[%clk 0:02:32.5]} 11. h3
{[%clk 0:02:51.6]} 11... Bxf3 {[%clk 0:02:26.9]} 12. Nxf3 {[%clk 0:02:52.1]}
12... Na5 {[%clk 0:02:26.1]} 13. c3 {[%clk 0:02:51.9]} 13... Nxb3 {[%clk
0:02:25.3]} 14. axb3 {[%clk 0:02:52.8]} 14... e6 {[%clk 0:02:22.8]} 15. O-O
{[%clk 0:02:50.1]} 15... a6 {[%clk 0:02:15.9]} 16. Be3 {[%clk 0:02:50.1]} 16...
f5 {[%clk 0:01:58.6]} 17. exf6 {[%clk 0:02:43.2]} 17... Qxf6 {[%clk 0:01:58.7]}
18. Ne5 {[%clk 0:02:39.2]} 18... O-O {[%clk 0:01:55.8]} 19. g4 {[%clk
0:02:29.5]} 19... Qh4 {[%clk 0:01:44.8]} 20. Kg2 {[%clk 0:02:27.5]} 20... Bxe5
{[%clk 0:01:43.1]} 21. dxe5 {[%clk 0:01:56.2]} 21... Rf7 {[%clk 0:01:10.6]} 22.
Qd3 {[%clk 0:01:53.8]} 22... Kg7 {[%clk 0:00:58.9]} 23. Rf3 {[%clk 0:01:40.5]}
23... Raf8 {[%clk 0:00:56.8]} 24. Raf1 {[%clk 0:01:40.3]} 24... Nd7 {[%clk
0:00:52]} 25. b4 {[%clk 0:01:36.6]} 25... c6 {[%clk 0:00:51.8]} 26. Bf2 {[%clk
0:01:30.3]} 26... Qe7 {[%clk 0:00:50.8]} 27. Bg3 {[%clk 0:01:30.8]} 27... c5
{[%clk 0:00:49.1]} 28. f5 {[%clk 0:01:18.3]} 28... gxf5 {[%clk 0:00:47]} 29.
gxf5 {[%clk 0:01:18.4]} 29... exf5 {[%clk 0:00:42.9]} 30. Qxd5 {[%clk
0:01:13.7]} 30... cxb4 {[%clk 0:00:42.1]} 31. e6 {[%clk 0:01:12.5]} 31... Nf6
{[%clk 0:00:39.8]} 32. Qxf5 {[%clk 0:01:12.4]} 32... bxc3 {[%clk 0:00:24.9]} 33.
bxc3 {[%clk 0:01:09.2]} 33... Nd5 {[%clk 0:00:13.9]} 34. Qxf7+ {[%clk
0:01:05.3]} 34... Rxf7 {[%clk 0:00:13.7]} 35. Rxf7+ {[%clk 0:01:05.5]} 1-0